bitfinex/quotes_ETHUSD_20240915
["timestamp","ask_amount","ask_price","bid_price","bid_amount"]
[1726421107444,0.0388047,2389.9,2389.7,0.646958]
[1726421107643,0.0388047,2389.9,2389.6,4.18468]
[1726421108673,0.0388047,2389.9,2389.4,8.37004]
[1726421109004,0.0388047,2389.9,2389.5,4.26861031]
[1726421110263,2.4480047,2389.9,2389.5,4.26861031]
[1726421110467,2.4480047,2389.9,2389.5,5.11397334]
[1726421111293,4.18456,2389.8,2389.2,4.18537]
[1726421111613,6.59376,2389.8,2389.3,4.18531]
[1726421111910,6.59376,2389.8,2389.2,8.37076]
[1726421112428,2.4092,2389.5,2389.0,4.18573]
[1726421113293,2.4092,2389.5,2388.8,6.55228]
[1726421113294,6.59419,2389.5,2388.8,6.55228]
[1726421113469,6.59419,2389.5,2388.6,2.3662]
[1726421113470,4.18542,2389.3,2388.6,2.3662]
[1726421113669,4.18542,2389.3,2388.8,4.18617]
[1726421113905,4.18542,2389.3,2388.6,2.3662]
[1726421113906,4.18569,2389.1,2388.6,4.18641]
[1726421114214,8.37089,2389.3,2388.6,9.20976299]
[1726421114423,4.18539,2389.3,2388.7,0.9209763]
[1726421114623,4.18595,2389.0,2388.4,4.18677]
[1726421114771,8.37194,2389.0,2388.4,4.18677]
[1726421114979,4.18595,2389.0,2388.4,4.18677]
[1726421115977,4.7356,2389.2,2388.4,4.18677]
[1726421116177,4.18571,2389.1,2388.6,4.18654]
[1726421116382,2.4092,2389.0,2388.6,4.18654]
[1726421116924,2.4092,2389.0,2388.6,5.023871]
[1726421117685,4.18605,2388.9,2388.6,0.837331]
[1726421117880,4.18605,2388.9,2388.1,0.87781509]
[1726421117881,5.1250148,2388.9,2388.1,0.87781509]
[1726421118083,5.1250148,2388.9,2388.0,2.57979802]
[1726421118084,4.1865,2388.7,2388.0,7.81675538]
[1726421118425,4.18642,2388.7,2388.0,7.81675538]
[1726421118921,4.18642,2388.7,2388.0,12.00424538]
[1726421119126,4.18642,2388.7,2388.0,7.81675538]
[1726421119282,2.4092,2388.2,2387.8,0.87781509]
[1726421119500,7.18596,2389.0,2387.8,4.18785]
[1726421119501,2.4092,2388.4,2387.8,4.18785]
[1726421120314,6.59616,2388.4,2387.8,4.18785]
[1726421121711,4.18738,2388.2,2387.7,2.3662]
[1726421122129,2.4092,2388.0,2387.5,2.3662]
[1726421122412,2.4092,2388.2,2387.6,4.27194622]
[1726421122588,6.59662,2388.2,2387.6,5.01520173]
[1726421122789,4.18747,2388.1,2387.6,5.01520173]
[1726421123030,4.18747,2388.1,2387.7,0.73814017]
[1726421125906,6.59647,2388.2,2387.7,0.73814017]
[1726421126111,4.18743,2388.1,2387.7,0.73814017]
[1726421126315,2.4092,2388.2,2387.7,4.18797]
[1726421127939,7.32,2388.5,2387.8,2.44994709]
[1726421128110,7.32,2388.5,2388.2,4.18715]
[1726421128452,7.32,2388.5,2388.4,4.1869]
[1726421128612,2.3588,2388.8,2388.4,4.1869]
[1726421128816,2.3588,2388.8,2388.2,8.37434]
[1726421129050,2.3588,2388.8,2388.3,5.262934]
[1726421129746,2.3588,2388.8,2388.3,1.075874]
[1726421130151,2.3588,2388.8,2388.3,5.262794]
[1726421132739,2.3588,2388.8,2388.3,1.075874]
[1726421132940,4.18661,2388.6,2388.1,2.3844]
[1726421133251,4.18661,2388.6,2388.0,4.1875]
[1726421133424,4.18684,2388.5,2387.9,7.32953619]
[1726421133631,4.18684,2388.5,2388.0,1.15173862]
[1726421133932,4.18718,2388.3,2387.6,7.31581551]
[1726421134128,4.18718,2388.3,2387.7,5.00745306]
[1726421134454,6.54583,2388.4,2387.8,4.18793]
[1726421134817,4.18718,2388.3,2387.7,0.81936306]
[1726421135024,4.18718,2388.3,2387.8,1.15800731]
[1726421135554,4.18725,2388.2,2387.8,1.15800731]
[1726421135762,4.18725,2388.2,2387.6,10.76074]
[1726421135964,4.18725,2388.2,2387.7,4.18812]
[1726421136317,4.18725,2388.2,2387.6,6.57255]
[1726421140360,4.18725,2388.2,2387.6,10.76075]
[1726421140519,8.37464,2388.2,2387.7,1.25352025]
[1726421140719,2.3588,2388.1,2387.5,1.77443269]
[1726421140921,2.3588,2388.1,2387.2,5.94451019]
[1726421140922,3.94745525,2387.6,2387.2,1.77460761]
[1726421141156,2.3588,2387.2,2387.0,0.0388047]
[1726421141368,6.54784,2387.2,2387.0,0.0388047]
[1726421141565,2.3588,2387.2,2387.0,0.0388047]
[1726421141770,4.18918,2387.1,2387.0,0.0388047]
[1726421142076,8.37836,2387.1,2387.0,0.0388047]
[1726421142562,9.84682153,2387.1,2387.0,0.0388047]
[1726421142936,5.65764153,2387.1,2387.0,0.0388047]
[1726421143141,4.18918,2387.1,2387.0,0.0388047]
[1726421143650,8.13663525,2387.1,2387.0,0.0388047]
[1726421143957,12.32581525,2387.1,2387.0,0.0388047]
[1726421144532,8.13663525,2387.1,2387.0,0.0388047]
[1726421145468,4.18918,2387.1,2387.0,0.0388047]
[1726421150190,12.32581525,2387.1,2387.0,0.0388047]
[1726421150353,13.79427678,2387.1,2387.0,0.0388047]
[1726421150556,9.60509678,2387.1,2387.0,0.0388047]
[1726421150767,23.85245678,2387.1,2387.0,0.0388047]
[1726421150967,8.38082,2386.4,2386.3,0.0388047]
[1726421151195,10.45524725,2386.4,2386.3,0.0388047]
[1726421151649,5.66971,2386.4,2386.3,0.0388047]
[1726421153097,4.19013,2386.6,2386.3,0.0388047]
[1726421154174,4.19027,2386.5,2386.3,0.0388047]
[1726421154613,8.38065,2386.5,2386.3,0.0388047]
[1726421154925,4.19027,2386.5,2386.3,0.0388047]
[1726421155206,8.38062,2386.5,2386.3,0.0388047]
[1726421155524,15.29258486,2386.4,2386.3,0.0388047]
[1726421155669,14.64727525,2386.4,2386.3,0.0388047]
[1726421156609,10.45686525,2386.4,2386.3,0.0388047]
[1726421157022,4.19041,2386.4,2386.3,0.0388047]
[1726421158796,6.26645525,2386.6,2386.3,0.0388047]
[1726421158995,9.50915,2386.6,2386.3,0.0388047]
[1726421159397,4.19025,2386.5,2386.3,0.0388047]
[1726421160016,4.19041,2386.4,2386.3,0.0388047]
[1726421161234,8.38082,2386.4,2386.3,0.0388047]
[1726421161441,17.64727525,2386.4,2386.3,0.0388047]
[1726421161909,22.38768525,2386.4,2386.3,0.0388047]
[1726421163896,18.19727525,2386.4,2386.3,0.0388047]
[1726421164098,20.15399468,2386.4,2386.3,0.0388047]
[1726421164292,6.50941,2386.4,2386.3,0.0388047]
[1726421164511,9.639,2387.0,2386.4,2.5246]
[1726421164709,16.39745525,2387.3,2386.5,4.19021]
[1726421164710,4.18908,2387.2,2386.5,4.19021]
[1726421165008,6.50808,2387.2,2386.5,4.86559847]
[1726421165225,4.18918,2387.1,2386.6,0.08378956]
[1726421165532,4.18937,2387.0,2386.5,0.67538847]
[1726421165742,3.94745525,2386.7,2386.3,0.0388047]
[1726421166029,8.13735525,2386.7,2386.3,0.54951268]
[1726421166734,3.94745525,2386.7,2386.3,0.54951268]
[1726421166944,6.50883,2386.8,2386.3,0.54951268]
[1726421168441,4.18983,2386.8,2386.3,0.54951268]
[1726421168596,4.18983,2386.8,2386.4,0.47402527]
[1726421169729,4.18983,2386.8,2386.3,4.74009268]
[1726421170092,4.18911,2387.2,2386.5,2.4673]
[1726421170292,4.18911,2387.2,2386.5,6.65742]
[1726421170535,4.18911,2387.2,2386.6,0.665742]
[1726421171196,6.60356,2387.0,2386.6,0.665742]
[1726421171435,6.60356,2387.0,2386.5,6.65742]
[1726421171646,6.60356,2387.0,2386.3,4.74000268]
[1726421171647,3.94745525,2386.7,2386.3,0.0388047]
[1726421171942,8.13783525,2386.5,2386.3,0.0388047]
[1726421172153,8.13780525,2386.5,2386.3,0.0388047]
[1726421172502,4.19041,2386.4,2386.3,0.0388047]
[1726421172735,7.19041,2386.4,2386.3,0.0388047]
[1726421173953,18.53543,2386.4,2386.3,0.0388047]
[1726421174103,20.82319308,2386.4,2386.3,0.0388047]
[1726421174301,16.63278308,2386.4,2386.3,0.0388047]
[1726421178947,4.19018,2386.6,2386.3,0.0388047]
[1726421179149,4.18981,2386.8,2386.3,0.0388047]
[1726421179705,2.4142,2386.9,2386.3,0.0388047]
[1726421180012,4.18972,2386.8,2386.4,2.4673]
[1726421181320,11.50946,2387.0,2386.4,6.65756]
[1726421181504,4.18946,2387.0,2386.5,0.74498384]
[1726421181703,4.18954,2386.9,2386.5,0.74498384]
[1726421181951,4.18954,2386.9,2386.4,2.4673]
[1726421182108,4.18946,2387.0,2386.4,6.6577]
[1726421182303,8.37899,2387.0,2386.4,6.6577]
[1726421182612,4.18959,2386.9,2386.4,7.81338342]
[1726421183323,4.18912,2387.2,2386.5,0.08380181]
[1726421183672,4.18919,2387.1,2386.6,4.18993]
[1726421188439,4.1892,2387.1,2386.6,4.18993]
[1726421188946,4.18938,2387.0,2386.5,1.31934103]
[1726421189164,4.18938,2387.0,2386.6,1.7698399]
[1726421189375,4.18938,2387.0,2386.6,1.52537636]
[1726421189553,4.18938,2387.0,2386.7,2.4963]
[1726421189957,7.32,2387.3,2386.9,4.18949]
[1726421190250,7.18841,2387.6,2387.0,2.9236282]
[1726421190251,4.18866,2387.4,2387.0,2.9236282]
[1726421190459,4.18841,2387.6,2387.0,7.1129682]
[1726421190649,8.37684,2387.6,2387.0,7.1129682]
[1726421190857,4.18849,2387.5,2387.0,7.1129682]
[1726421191455,4.18867,2387.4,2387.0,2.9236282]
[1726421191656,4.18867,2387.4,2387.0,2.4963]
[1726421193264,8.13612525,2387.4,2386.8,4.1896]
[1726421194094,4.1889,2387.3,2386.8,4.1896]
[1726421194393,4.1889,2387.3,2386.8,5.51750415]
[1726421196183,4.18867,2387.4,2386.8,5.51750415]
[1726421196390,4.18841,2387.6,2387.1,4.18917]
[1726421196593,4.18848,2387.5,2387.2,2.4963]
[1726421197788,4.18884,2387.3,2386.9,2.4963]
[1726421198099,8.37779,2387.3,2386.9,2.4963]
[1726421198391,4.18884,2387.3,2386.9,2.4963]
[1726421198594,4.18928,2387.1,2386.9,2.4963]
[1726421199253,4.18804603,2387.1,2386.9,2.4963]
[1726421199455,4.18902,2387.2,2386.9,2.4963]
[1726421200054,4.18893,2387.3,2386.9,2.4963]
[1726421200254,4.18893,2387.3,2386.9,2.74593]
[1726421201270,4.18893,2387.3,2386.9,2.4963]
[1726421201271,4.18901,2387.2,2386.9,2.4963]
[1726421201596,8.37792,2387.3,2386.9,2.4963]
[1726421201767,4.18893,2387.3,2386.9,2.4963]
[1726421202755,8.37787,2387.3,2386.9,2.4963]
[1726421202954,4.18893,2387.3,2386.9,2.4963]
[1726421203459,4.18893,2387.3,2386.9,2.74593]
[1726421206461,8.37787,2387.3,2386.9,2.4963]
[1726421206794,4.18893,2387.3,2386.9,2.4963]
[1726421207803,8.37788,2387.3,2386.9,2.4963]
[1726421208100,8.37786,2387.3,2386.9,2.4963]
[1726421208256,4.18893,2387.3,2386.9,2.4963]
[1726421210106,4.18901,2387.2,2386.9,2.4963]
[1726421210313,4.18893,2387.3,2386.9,2.4963]
[1726421210477,4.18892,2387.3,2386.9,2.4963]
[1726421210892,8.37784,2387.3,2386.9,2.4963]
[1726421211258,4.18892,2387.3,2386.9,2.4963]
[1726421211463,8.37785,2387.3,2386.9,2.4963]
[1726421211773,8.37784,2387.3,2386.9,2.4963]
[1726421211971,10.0388047,2392.7,2387.4,3.0]
[1726421211972,0.43858964,2388.2,2387.4,3.0]
[1726421212176,0.43858964,2388.2,2388.1,6.53972]
[1726421212474,2.4319,2389.1,2388.1,6.53972]
[1726421213159,2.4319,2389.1,2388.1,2.3523]
[1726421213519,4.18638,2388.7,2388.1,2.3523]
[1726421216299,8.17546882,2389.2,2388.8,4.18617]
[1726421216300,0.0388047,2389.2,2388.8,4.18617]
[1726421216612,0.0388047,2389.2,2388.9,2.3523]
[1726421217576,0.0388047,2389.2,2388.9,6.53831]
[1726421218890,0.0388047,2389.2,2388.9,2.3523]
[1726421219899,0.0388047,2389.2,2388.9,2.2523]
[1726421220223,0.0388047,2389.2,2388.6,4.18643]
[1726421220224,4.2244747,2389.2,2388.6,4.18643]
[1726421220532,0.42244747,2389.1,2388.4,4.18683]
[1726421220889,0.42244747,2389.1,2388.6,4.18652]
[1726421222213,4.60814747,2389.1,2388.4,4.18683]
[1726421222419,0.88326222,2389.0,2388.4,8.37361]
[1726421222625,0.88326222,2389.0,2388.4,4.18678]
[1726421222774,5.06919222,2389.0,2388.4,4.18678]
[1726421222975,5.06919222,2389.0,2388.4,6.53908]
[1726421224329,0.88326222,2389.0,2388.4,6.53908]
[1726421224616,4.1857,2389.1,2388.4,6.53908]
[1726421224818,8.37149,2389.1,2388.5,4.18668]
[1726421225038,8.37149,2389.1,2388.4,6.53908]
[1726421225039,4.1857,2389.1,2388.4,6.53908]
[1726421225207,5.02668447,2389.1,2388.6,4.1865]
[1726421225389,5.02668447,2389.1,2388.4,10.62585]
[1726421225592,4.18613,2388.9,2388.4,2.3523]
[1726421226240,7.12432892,2389.0,2388.4,6.53919]
[1726421226831,4.18624,2388.8,2388.2,4.18708]
[1726421227040,0.418624,2388.7,2388.2,4.18708]
[1726421227394,2.4319,2388.5,2388.1,2.3523]
[1726421228839,2.4319,2388.5,2387.9,4.18764]
[1726421229022,6.61866,2388.5,2387.9,4.18764]
[1726421229249,7.3223674,2388.5,2387.9,4.18764]
[1726421229553,4.18713,2388.3,2387.8,2.3318]
[1726421229707,0.418713,2388.2,2387.8,2.3318]
[1726421229912,4.606103,2388.2,2387.6,4.1882]
[1726421230214,6.52891,2388.0,2387.4,4.1886]
[1726421230634,2.3412,2388.0,2387.5,4.18847]
[1726421230923,5.0667833,2388.1,2387.5,4.18847]
[1726421231155,5.0667833,2388.1,2387.4,4.18855]
[1726421231326,0.74079833,2388.0,2387.4,4.18855]
[1726421232052,4.92840833,2388.0,2387.4,4.18855]
[1726421232261,4.18779,2387.9,2387.4,4.18855]
[1726421233571,0.74079833,2388.0,2387.4,4.18855]
[1726421233766,4.92840833,2388.0,2387.4,4.18855]
[1726421234082,0.91158683,2387.9,2387.4,4.18855]
[1726421234859,5.09947683,2387.9,2387.2,10.80961]
[1726421235271,4.18789,2387.9,2387.3,4.18879]
[1726421236584,6.52919,2387.8,2387.2,6.6207]
[1726421237084,4.18834,2387.6,2387.2,2.4318]
[1726421237381,4.18834,2387.6,2387.0,4.18926]
[1726421237946,4.18834,2387.6,2387.0,4.18924]
[1726421238344,4.841129,2387.7,2387.1,4.18904]
[1726421240098,4.841129,2387.7,2387.0,4.18924]
[1726421240099,4.18833,2387.6,2387.0,4.18924]
[1726421240298,5.3253799,2387.6,2387.0,8.37846]
[1726421241547,5.3253799,2387.6,2387.0,4.18922]
[1726421242723,5.3253799,2387.6,2387.0,8.37848]
[1726421244354,5.3253799,2387.6,2387.1,4.18912]
[1726421247539,5.3253799,2387.6,2387.0,4.18922]
[1726421247936,5.3253799,2387.6,2387.0,8.37846]
[1726421248256,2.4733,2387.7,2387.1,5.270206]
[1726421248468,4.18805,2387.8,2387.3,2.2931]
[1726421248665,4.18805,2387.8,2387.3,6.48183]
[1726421248962,4.18805,2387.8,2387.3,2.2931]
[1726421249142,4.18805,2387.8,2387.2,4.18898]
[1726421249462,5.272949,2387.8,2387.2,4.18898]
[1726421249664,9.461019,2387.8,2387.2,4.18898]
[1726421249831,4.18816,2387.7,2387.2,4.18898]
[1726421252255,9.461009,2387.8,2387.2,4.18898]
[1726421253235,4.18817,2387.7,2387.2,4.18898]
[1726421253821,4.18805,2387.8,2387.2,5.256033]
[1726421254051,8.37617,2387.8,2387.2,5.256033]
[1726421255234,8.3761,2387.8,2387.2,5.256033]
[1726421255436,4.18817,2387.7,2387.2,4.1889]
[1726421258688,4.18814,2387.7,2387.2,4.1889]
[1726421258908,4.18814,2387.7,2387.1,6.48214]
[1726421260078,4.18831,2387.6,2387.1,6.48214]
[1726421260347,4.18831,2387.6,2387.1,2.2931]
[1726421260576,4.18814,2387.7,2387.0,4.18925]
[1726421260577,6.6618,2387.5,2387.0,4.18925]
[1726421260813,2.4733,2387.5,2387.0,4.18925]
[1726421262192,6.66185,2387.5,2387.0,4.18925]
[1726421262493,7.54597514,2387.5,2387.0,4.18925]
[1726421266059,6.66185,2387.5,2387.0,4.18925]
[1726421268596,4.18832,2387.6,2387.1,1.77466117]
[1726421268898,4.18832,2387.6,2387.0,5.06634007]
[1726421269048,4.18832,2387.6,2387.0,4.18923]
[1726421269254,4.835262,2387.6,2387.1,1.77537957]
[1726421269592,4.835262,2387.6,2387.0,5.06634007]
[1726421269793,4.835262,2387.6,2387.1,1.77541729]
[1726421269956,4.18848,2387.5,2387.0,5.06634007]
[1726421270155,4.18848,2387.5,2387.1,1.77541988]
[1726421270380,4.18764,2388.0,2387.3,2.402]
[1726421270381,8.37618,2387.8,2387.3,2.402]
[1726421270656,8.37617,2387.8,2387.3,2.402]
[1726421270897,4.18806,2387.8,2387.3,2.402]
[1726421271097,4.834976,2387.8,2387.3,2.402]
[1726421272106,4.18813,2387.7,2387.4,1.77758111]
[1726421272280,6.46878,2388.0,2387.3,3.27911007]
[1726421272474,4.18768,2388.0,2387.6,2.402]
[1726421272668,4.18768,2388.0,2387.7,1.77749951]
[1726421272998,4.18768,2388.0,2387.6,3.27911007]
[1726421273194,4.18768,2388.0,2387.7,1.77750537]
[1726421273398,4.18768,2388.0,2387.6,3.27911007]
[1726421273715,4.18768,2388.0,2387.7,1.77833913]
[1726421273916,4.18768,2388.0,2387.6,3.27911007]
[1726421274120,4.18768,2388.0,2387.7,1.77833926]
[1726421274302,6.46846,2388.2,2387.8,1.77901399]
[1726421274484,4.18763,2388.0,2387.7,0.87711007]
[1726421274679,4.18763,2388.0,2387.8,1.77902655]
[1726421274898,4.18778,2387.9,2387.7,0.87711007]
[1726421275230,8.37538,2388.0,2387.6,3.27911007]
[1726421275375,8.37538,2388.0,2387.7,2.65684988]
[1726421275581,8.37535,2388.0,2387.8,1.77973981]
[1726421275889,8.37535,2388.0,2387.7,0.87711007]
[1726421275890,8.37536,2388.0,2387.7,0.87711007]
[1726421276095,9.5357096,2388.0,2387.8,1.77972527]
[1726421276293,9.5357096,2388.0,2387.7,0.87711007]
[1726421276518,9.5357096,2388.0,2387.8,1.77986565]
[1726421276824,9.5357096,2388.0,2387.7,0.87711007]
[1726421277125,5.14135096,2387.9,2387.8,1.77985863]
[1726421277720,0.95357096,2387.9,2387.8,1.77985863]
[1726421277904,4.18813,2387.7,2387.6,0.87711007]
[1726421278104,4.18813,2387.7,2387.6,1.78003025]
[1726421278306,4.18813,2387.7,2387.4,0.87711007]
[1726421278517,4.18813,2387.7,2387.5,1.78016232]
[1726421278819,4.1883,2387.6,2387.4,0.87711007]
[1726421278980,4.1883,2387.6,2387.5,1.78016973]
[1726421280209,4.1883,2387.6,2387.2,2.402]
[1726421280210,6.23071554,2387.6,2387.2,0.87711007]
[1726421280421,6.23071554,2387.6,2387.0,1.75422015]
[1726421280422,4.18898,2387.3,2387.0,0.87711007]
[1726421280576,4.18865,2387.4,2387.1,2.65752166]
[1726421280780,3.53589116,2387.5,2387.2,1.78038099]
[1726421280781,3.0,2387.5,2387.2,1.78038099]
[1726421280980,7.18859,2387.5,2387.1,3.27911007]
[1726421281207,7.18859,2387.5,2387.2,1.7803717]
[1726421281409,4.18844,2387.6,2387.3,1.78043277]
[1726421281737,4.18844,2387.6,2387.2,0.87711007]
[1726421281738,8.37687,2387.6,2387.2,0.87711007]
[1726421281904,8.37687,2387.6,2387.3,1.78032788]
[1726421282220,4.18851,2387.5,2387.2,0.87711007]
[1726421282418,8.37689,2387.6,2387.3,1.78034554]
[1726421282624,8.37689,2387.6,2387.2,0.87711007]
[1726421282793,8.37689,2387.6,2387.3,1.77597683]
[1726421283003,4.18843,2387.6,2387.2,0.87711007]
[1726421283314,4.18843,2387.6,2387.3,1.77596831]
[1726421283514,4.18849,2387.5,2387.2,0.87711007]
[1726421283714,4.18849,2387.5,2387.1,3.71766511]
[1726421283715,9.25986205,2387.6,2387.1,3.27911007]
[1726421283920,5.07141205,2387.6,2387.2,1.77594611]
[1726421284235,5.07141205,2387.6,2387.1,3.27911007]
[1726421284236,9.25983205,2387.6,2387.3,1.77594307]
[1726421284405,5.07141205,2387.6,2387.2,0.87711007]
[1726421284749,4.1884,2387.6,2387.3,1.77584143]
[1726421285039,4.1884,2387.6,2387.2,0.87711007]
[1726421285337,4.1884,2387.6,2387.3,1.77584176]
[1726421285546,4.1884,2387.6,2387.2,0.87711007]
[1726421285694,4.1884,2387.6,2387.3,1.77581007]
[1726421285894,4.1884,2387.6,2387.2,0.77711007]
[1726421286136,4.1884,2387.6,2387.3,1.77580963]
[1726421286304,5.554157,2387.6,2387.2,0.77711007]
[1726421286517,5.554157,2387.6,2387.3,1.77577267]
[1726421286715,5.554157,2387.6,2387.2,0.77711007]
[1726421287038,5.554157,2387.6,2387.3,1.77528544]
[1726421287241,5.554157,2387.6,2387.2,0.77711007]
[1726421287438,5.554157,2387.6,2387.3,1.77525117]
[1726421287610,5.554157,2387.6,2387.2,0.77711007]
[1726421287794,5.554157,2387.6,2387.3,1.77524254]
[1726421288002,5.554157,2387.6,2387.2,0.77711007]
[1726421288236,5.554157,2387.6,2387.3,1.77522925]
[1726421288436,4.1885,2387.5,2387.2,0.77711007]
[1726421288608,4.1885,2387.5,2387.3,1.7752156]
[1726421288810,5.554157,2387.6,2387.2,0.77711007]
[1726421289014,9.742557,2387.6,2387.3,1.79546868]
[1726421289228,5.554157,2387.6,2387.2,0.77711007]
[1726421289449,4.18848,2387.5,2387.3,1.79543002]
[1726421289630,4.18865,2387.4,2387.0,1.31566511]
[1726421289937,7.033228,2387.5,2387.1,1.79547947]
[1726421290169,7.033228,2387.5,2387.2,1.79547947]
[1726421290313,6.61438,2387.5,2387.3,1.79547947]
[1726421290648,6.61438,2387.5,2387.1,1.31566511]
[1726421290838,6.61438,2387.5,2387.2,1.79539397]
[1726421291150,9.7959,2387.9,2387.3,8.34228397]
[1726421291358,9.7959,2388.2,2387.4,5.50469662]
[1726421291641,4.18727,2388.2,2387.8,2.3582]
[1726421291848,4.18727,2388.2,2387.9,1.79539397]
[1726421292001,4.18727,2388.2,2387.8,2.3582]
[1726421292320,4.18727,2388.2,2387.9,1.7949425]
[1726421292528,4.18743,2388.1,2387.8,2.3582]
[1726421292709,8.37497,2388.1,2387.9,1.79456461]
[1726421293046,8.37497,2388.1,2387.6,3.67386511]
[1726421293047,4.18762,2388.0,2387.6,3.67386511]
[1726421293211,10.80024,2388.3,2387.7,1.79461822]
[1726421293398,4.18738,2388.2,2387.8,1.79461822]
[1726421293599,4.18738,2388.2,2387.9,1.79461822]
[1726421293828,6.61306,2388.3,2387.7,5.50368511]
[1726421294048,7.09690787,2388.3,2387.8,1.79428893]
[1726421294341,7.09690787,2388.3,2387.9,1.79428893]
[1726421294639,4.18748,2388.1,2387.7,1.31566511]
[1726421294798,4.18748,2388.1,2387.8,1.79400638]
[1726421295001,4.18748,2388.1,2387.6,9.33091138]
[1726421295227,4.18726,2388.2,2387.7,5.50170027]
[1726421295401,4.18726,2388.2,2387.8,1.79401387]
[1726421295738,4.18726,2388.2,2387.9,1.79401387]
[1726421296038,4.18716,2388.3,2387.7,1.31566511]
[1726421296039,4.18716,2388.3,2387.8,5.06688978]
[1726421296243,6.6127,2388.5,2388.0,6.54576]
[1726421296475,9.7959,2388.7,2388.1,4.15189173]
[1726421296682,4.18669,2388.6,2388.1,2.3582]
[1726421296979,4.18682,2388.5,2388.1,2.3582]
[1726421299776,6.61304,2388.3,2387.7,5.06710978]
[1726421300004,6.61304,2388.3,2387.8,1.7917253]
[1726421300284,6.61304,2388.3,2387.7,5.06710978]
[1726421300495,6.61304,2388.3,2387.8,1.79166479]
[1726421300654,6.61304,2388.3,2387.7,5.06710978]
[1726421300992,4.18727,2388.2,2387.8,1.79158097]
[1726421301134,4.18727,2388.2,2387.7,5.06710978]
[1726421301460,4.18727,2388.2,2387.8,1.79153045]
[1726421301777,4.18727,2388.2,2387.7,5.06710978]
[1726421302072,4.18727,2388.2,2387.8,1.7914582]
[1726421302295,4.18727,2388.2,2387.7,5.06710978]
[1726421302585,4.18727,2388.2,2387.8,1.79139875]
[1726421302786,4.18746,2388.1,2387.7,0.87898978]
[1726421302937,4.18746,2388.1,2387.6,3.23718978]
[1726421303139,4.18746,2388.1,2387.7,1.79134838]
[1726421303338,5.39068126,2388.1,2387.6,3.23718978]
[1726421303584,5.39068126,2388.1,2387.7,1.7913205]
[1726421303881,5.39068126,2388.1,2387.6,7.42545978]
[1726421304080,5.39068126,2388.1,2387.7,1.79129942]
[1726421304281,5.39068126,2388.1,2387.6,7.42545978]
[1726421304444,5.39068126,2388.1,2387.7,1.79124729]
[1726421304639,5.39068126,2388.1,2387.6,7.42545978]
[1726421304840,5.39068126,2388.1,2387.7,1.79124909]
[1726421305076,1.20322126,2388.1,2387.7,4.18812]
[1726421305380,6.61304,2388.3,2387.7,4.18812]
[1726421305583,10.80022,2388.3,2387.7,4.18812]
[1726421305757,4.18726,2388.2,2387.7,4.18812]
[1726421306083,5.3091582,2388.2,2387.7,4.18812]
[1726421306784,5.3091582,2388.2,2387.5,0.87898978]
[1726421306785,4.18762,2388.0,2387.5,0.87898978]
[1726421306957,4.18762,2388.0,2387.6,1.79120998]
[1726421307158,9.56766382,2388.0,2387.4,7.42569978]
[1726421307388,4.18778,2387.9,2387.5,1.79120713]
[1726421307542,4.18778,2387.9,2387.4,7.42569978]
[1726421307749,4.18778,2387.9,2387.5,1.79128624]
[1726421307978,4.18778,2387.9,2387.4,7.42569978]
[1726421308145,4.18778,2387.9,2387.5,1.79128613]
[1726421308345,4.18778,2387.9,2387.4,3.23718978]
[1726421308556,5.36494639,2387.9,2387.5,1.79124939]
[1726421308759,4.18797,2387.8,2387.4,3.23718978]
[1726421308961,5.14324564,2387.8,2387.4,2.3582]
[1726421310392,4.18768,2388.0,2387.4,2.3582]
[1726421310597,4.18768,2388.0,2387.5,1.79146628]
[1726421310767,4.18768,2388.0,2387.4,2.3582]
[1726421310768,4.18784,2387.9,2387.4,2.3582]
[1726421311182,2.4259,2388.1,2387.4,7.83981549]
[1726421311501,4.18734,2388.2,2387.7,2.3337]
[1726421311828,9.7757,2388.3,2387.8,4.18789]
[1726421312093,9.7757,2388.3,2387.8,4.18785]
[1726421312505,13.96282,2388.3,2387.8,4.18785]
[1726421313657,9.7757,2388.3,2387.8,4.18785]
[1726421314673,9.7757,2388.3,2387.6,0.87898978]
[1726421314879,2.4057,2387.9,2387.5,0.87898978]
[1726421315067,2.4057,2387.9,2387.6,1.78072604]
[1726421315273,2.4057,2387.9,2387.5,0.87898978]
[1726421315470,2.4057,2387.9,2387.6,1.780757]
[1726421315776,2.4057,2387.9,2387.5,0.87898978]
[1726421315967,2.4057,2387.9,2387.6,1.78082246]
[1726421316162,4.18762,2388.0,2387.5,5.06744978]
[1726421316364,4.18762,2388.0,2387.6,1.78083868]
[1726421316565,5.405314,2388.0,2387.5,0.87898978]
[1726421316800,5.405314,2388.0,2387.6,1.78090694]
[1726421317008,5.405314,2388.0,2387.5,0.87898978]
[1726421317304,5.405314,2388.0,2387.6,1.78090083]
[1726421317466,7.37,2388.3,2387.7,3.94961554]
[1726421317662,7.37,2388.3,2387.8,5.96868399]
[1726421317663,11.55712,2388.3,2387.8,5.96868399]
[1726421318001,11.55712,2388.3,2387.9,1.78083399]
[1726421318217,11.55712,2388.3,2387.8,5.06683978]
[1726421318385,11.55712,2388.3,2387.9,1.78079654]
[1726421318705,13.37209,2388.3,2387.8,5.06683978]
[1726421318886,13.37209,2388.3,2387.9,1.7807984]
[1726421319102,13.37209,2388.3,2387.8,5.06683978]
[1726421319268,13.37209,2388.3,2387.9,1.78079627]
[1726421319465,11.55712,2388.3,2387.8,5.06683978]
[1726421319702,4.18691,2388.4,2388.0,2.3337]
[1726421319873,11.5944447,2389.2,2388.0,6.52125]
[1726421319874,7.1866,2388.6,2388.0,6.52125]
[1726421320802,3.0,2388.6,2388.0,11.99912449]
[1726421321001,3.0,2388.6,2388.1,4.1874]
[1726421321211,6.59215,2388.7,2388.0,6.5212]
[1726421321506,6.59215,2388.7,2388.1,2.52032618]
[1726421321672,2.4057,2388.7,2388.0,0.87898978]
[1726421321872,4.18665,2388.6,2388.1,1.78008887]
[1726421322218,0.659235,2388.5,2388.0,5.06646978]
[1726421322382,4.18665,2388.6,2388.1,5.96739085]
[1726421322745,2.4057,2388.7,2388.1,8.37471]